Department family,Entity,Date,Expense type,Expense area,Supplier,Transaction number,Amount,Description,Supplier Postcode
Pmu,Pmu,29/04/2022,Drugs,Pmu,Alliance Healthcare Distribution Ltd,F21B52160,"48,957.71 ",Pharmaceutical  purchase,KT9 1SN
Balance Sheet,L2 Current Assets,01/04/2022,Finished Processed Goods,Stock & Work In Progress,Alliance Healthcare Distribution Ltd,F23154678,"69,052.20 ",Pharmaceutical  purchase,KT9 1SN
Pmu,Pmu,29/04/2022,Drugs,Pmu,Alliance Healthcare Distribution Ltd,F23755305,"27,505.96 ",Pharmaceutical  purchase,KT9 1SN
Pmu,Pmu,29/04/2022,Drugs,Pmu,Alliance Healthcare Distribution Ltd,F23755306,"31,874.40 ",Pharmaceutical  purchase,KT9 1SN
Balance Sheet,L2 Current Assets,14/04/2022,Finished Processed Goods,Stock & Work In Progress,Alliance Healthcare Distribution Ltd,F23F54543,"55,230.24 ",Pharmaceutical  purchase,KT9 1SN
Pmu,Pmu,14/04/2022,Drugs,Pmu,Alliance Healthcare Distribution Ltd,F23H53960,"56,448.00 ",Pharmaceutical  purchase,KT9 1SN
Balance Sheet,L2 Current Assets,22/04/2022,Finished Processed Goods,Stock & Work In Progress,Alliance Healthcare Distribution Ltd,F23P53513,"55,245.29 ",Pharmaceutical  purchase,KT9 1SN
Balance Sheet,L2 Current Assets,29/04/2022,Finished Processed Goods,Stock & Work In Progress,Alloga Uk Ltd,SCR100148946,"-32,400.00 ",Pharmaceutical  purchase,DE55 2FH
CHS Estates,L2 Estates,14/04/2022,Contract : Other External,Medical Physics,B Braun Sterilog (Yorkshire) Ltd,328746641,"116,023.42 ",DECONTAMINATION SERVICES FOR SURGICAL & PODIATRY,S35 2PW
Balance Sheet,L2 Current Assets,01/04/2022,Finished Processed Goods,Stock & Work In Progress,Bayer Plc,824C403033,"27,373.68 ",Pharmaceutical  purchase,RG2 6AD
Balance Sheet,L2 Current Assets,01/04/2022,Finished Processed Goods,Stock & Work In Progress,Bayer Plc,824C403683,"29,654.82 ",Pharmaceutical  purchase,RG2 6AD
Balance Sheet,L2 Current Assets,08/04/2022,Finished Processed Goods,Stock & Work In Progress,Bayer Plc,824C403930,"27,373.68 ",Pharmaceutical  purchase,RG2 6AD
Balance Sheet,L2 Current Assets,08/04/2022,Finished Processed Goods,Stock & Work In Progress,Bayer Plc,824C405178,"29,654.82 ",Pharmaceutical  purchase,RG2 6AD
Balance Sheet,L2 Current Assets,14/04/2022,Finished Processed Goods,Stock & Work In Progress,Bayer Plc,824C406614,"27,373.68 ",Pharmaceutical  purchase,RG2 6AD
Balance Sheet,L2 Current Assets,14/04/2022,Finished Processed Goods,Stock & Work In Progress,Bayer Plc,824C406950,"29,654.82 ",Pharmaceutical  purchase,RG2 6AD
Balance Sheet,L2 Current Assets,22/04/2022,Finished Processed Goods,Stock & Work In Progress,Bayer Plc,824C407396,"27,373.68 ",Pharmaceutical  purchase,RG2 6AD
Balance Sheet,L2 Current Assets,22/04/2022,Finished Processed Goods,Stock & Work In Progress,Bayer Plc,824C407782,"29,654.82 ",Pharmaceutical  purchase,RG2 6AD
Balance Sheet,L2 Current Assets,29/04/2022,Finished Processed Goods,Stock & Work In Progress,Bayer Plc,824C408746,"29,654.82 ",Pharmaceutical  purchase,RG2 6AD
Balance Sheet,L2 Current Assets,29/04/2022,Finished Processed Goods,Stock & Work In Progress,Bayer Plc,824C409600,"29,654.82 ",Pharmaceutical  purchase,RG2 6AD
Balance Sheet,L2 Current Assets,29/04/2022,Finished Processed Goods,Stock & Work In Progress,Bayer Plc,824C409601,"27,373.68 ",Pharmaceutical  purchase,RG2 6AD
Balance Sheet,L2 Current Assets,22/04/2022,Finished Processed Goods,Stock & Work In Progress,Bayer Plc,824c408315,"27,373.68 ",Pharmaceutical  purchase,RG2 6AD
Families & Specialist Services,Pathology,08/04/2022,Laboratory Test Kits,Microbiology,Becton Dickinson U.K. Ltd,220033342,"37,610.25 ",Managed Service Contract for non-CoVID,RG41 5TS
Surgery & Anaesthetics,Surgical Divisional Support,08/04/2022,Contractual Clinical Services,Independent Sector,Bmi Healthcare Ltd,S5712DEC21,"74,682.29 ",Provision of Elective Activity on behalf of CHFT ,SK3 0XN
Surgery & Anaesthetics,Surgical Divisional Support,14/04/2022,Contractual Clinical Services,Independent Sector,Bmi Healthcare Ltd,S5712JAN22,"25,802.24 ",Provision of Elective Activity on behalf of CHFT ,SK3 0XN
Surgery & Anaesthetics,Surgical Divisional Support,08/04/2022,Contractual Clinical Services,Independent Sector,Bmi Healthcare Ltd,S5712NOV21,"87,237.58 ",Provision of Elective Activity on behalf of CHFT ,SK3 0XN
Surgery & Anaesthetics,Surgical Divisional Support,08/04/2022,Contractual Clinical Services,Independent Sector,Bmi Healthcare Ltd,S5712OCT21,"91,382.56 ",Provision of Elective Activity on behalf of CHFT ,SK3 0XN
Families & Specialist Services,Radiology,01/04/2022,Drugs,Rad General,Bradford Teaching Hospitals NHS Foundation Trust,320487,"31,435.59 ",Pharmaceutical  purchase,WF3 1WE
Families & Specialist Services,Radiology,01/04/2022,Drugs,Rad General,Bradford Teaching Hospitals NHS Foundation Trust,320487,"31,435.59 ",Pharmaceutical  purchase,WF3 1WE
Recharges,Recharges,08/04/2022,Healthcare From Foundation Trusts,Recharges,Bradford Teaching Hospitals NHS Foundation Trust,320837,"484,760.00 ",Various services provided by agreement as per West Yorkshire Association of Acute Trusts agreed methodology,WF3 1WE
Corporate Services,Service Performance,01/04/2022,Minor Works,Pfi,Calderdale Hospital Spc Ltd,3631,"483,591.89 ",New Works - MRI/Mammography,M20 2YY
Corporate Services,Service Performance,21/04/2022,Contract : Other External,Pfi,Calderdale Hospital Spc Ltd,3632,"2,808,151.10 ",PFI contract monthly payment,M20 2YY
Corporate Services,Service Performance,21/04/2022,Income Generation Schemes,Pfi,Calderdale Hospital Spc Ltd,3632,"2,808,151.10 ",Car Parking (on hold due to Covid),M20 2YY
Corporate Services,Service Performance,08/04/2022,External Contracts : Catering,Pfi,Calderdale Hospital Spc Ltd,3633,"26,269.75 ",Additional variations  to PFI contract,M20 2YY
Corporate Services,Service Performance,08/04/2022,External Contracts : Domestics,Pfi,Calderdale Hospital Spc Ltd,3634,"28,520.76 ",Additional variations  to PFI contract,M20 2YY
Corporate Services,Service Performance,14/04/2022,Minor Works,Pfi,Calderdale Hospital Spc Ltd,3636,"368,420.48 ",Additional variations  to PFI contract,M20 2YY
Corporate Services,Service Performance,22/04/2022,Minor Works,Pfi,Calderdale Hospital Spc Ltd,3640,"138,053.64 ",New Works,M20 2YY
Corporate Services,Service Performance,29/04/2022,Minor Works,Pfi,Calderdale Hospital Spc Ltd,3642,"314,930.81 ",New Works ,M20 2YY
Corporate Services,Service Performance,14/04/2022,Rates,Properties,Calderdale Metropolitan Borough Council,25202291017616,"73,387.00 ",Business rates for Calderdale Royal Hospital,HX1 1TP
CHS Facilities,L2 Facilities,14/04/2022,Home Loans,Transport,Calderdale Metropolitan Borough Council,IN21163722,"77,160.00 ",Loans Stores contribution to Home loan health equipment - as part of ICES Period of 1/4/21 - 31/3/2022,HX1 1TP
Balance Sheet,Fixed Assets,29/04/2022,Additions - Assets Under Construction,Capital (Surgical),Cantel (Uk) Ltd,OP/1262955,"45,825.48 ",RapidAER Endoscope Reprocessor including 1st year Service Cost  includesRapidAER In-Service Training Days x8RapidAER Delivery - x1,SS3 9BX
Balance Sheet,Fixed Assets,14/04/2022,Additions - Assets Under Construction,Capital (Surgical),Carl Zeiss Ltd,5140567594,"80,321.18 ",HFA3 INSTRUMENT 860consisting of HFA3 INSTRUMENT 860Power Table 230V UNASLIC OPV IOD EXPORTBreath ShieldAC600 MU MIMO Adapter DWA-171HP COLOR LASERJET PRO M255nw PRINTER,CB23 6DW
Balance Sheet,Fixed Assets,14/04/2022,Additions - Assets Under Construction,Capital (Surgical),Carl Zeiss Ltd,5140567598,"40,161.23 ",HFA3 INSTRUMENT 860consisting of HFA3 INSTRUMENT 860Power Table 230V UNASLIC OPV IOD EXPORTBreath ShieldAC600 MU MIMO Adapter DWA-171HP COLOR LASERJET PRO M255nw PRINTER,CB23 6DW
Health Informatics,Modernisation Programme,01/04/2022,Computer Software / License  Fees,Modernisation Programme,Cerner Ltd,102041668,"63,112.80 ",Cerner - Table 12: RHO Recurring Charges. Monthly  commencing from the Effective Date and continuing until the end of the Term 52 594 per month x 12 for 2022,W2 1AF
Health Informatics,Modernisation Programme,01/04/2022,Computer Software / License  Fees,Modernisation Programme,Cerner Ltd,102041763,"38,400.00 ",Cerner CCN053 Nuance Dragon Medical Once Speech recognition. monthly recurring charge 32 000. x 12 for 2022. to link to order rwyf400053037,W2 1AF
Balance Sheet,Fixed Assets,14/04/2022,Additions - Assets Under Construction,Capital (His),Cerner Ltd,102053832,"102,000.00 ",Cerner OPT030484 CCN063- Consultancy services for optimization improvement activities 85 000,W2 1AF
Families & Specialist Services,Pathology,29/04/2022,Laboratory Reagents,Path General,Chrystal Consulting Ltd,60017,"48,864.52 ",Managed Service Contract for the Werfen Blood Gas analysers and Chen stats,M22 5HQ
Balance Sheet,Fixed Assets,29/04/2022,Additions - Assets Under Construction,Capital (His),Cisilion Ltd,INVUK0013617,"87,300.00 ",Professional Services: Design & Implement of AP Network ,KT22 9UT
Health Informatics,Corporate And Operations,01/04/2022,Computer Software / License  Fees,Professional Services,CoreStream Ltd,THIS.NHS-003,"26,220.00 ",CoreStream Information Asset Management CoreStream Implementation costs. Annual subscription over 2 years,SW1X 7HN
CHS Facilities,L2 Facilities,14/04/2022,Computer Software / License  Fees,Transport,Creative Software Solutions (Europe) Limited,1103675,"28,242.00 ",Licence cost for 22-23 for Pro-cloud and TCES software for Equipment Loan Stores,WS13 7AU
Balance Sheet,L2 Current Assets,01/04/2022,Finished Processed Goods,Stock & Work In Progress,Csl Behring Uk Ltd,994044311,"40,132.00 ",Pharmaceutical  purchase,RH16 1AH
Health Informatics,Service Delivery,08/04/2022,Computer Hardware Purchases,Service Delivery,Dell Corporation Ltd,7402795158,"60,960.00 ",LATITUDE 5420 BTS CONFIGURATION ,RG12 1LF
Health Informatics,Service Delivery,14/04/2022,Computer Hardware Purchases,Service Delivery,Dell Corporation Ltd,7402798194,"45,840.00 ","DELL 27 MONITOR - P2722H - 68.6com (27"")",RG12 1LF
CHS Estates,L2 Estates,01/04/2022,Computer Software / License  Fees,Management Estates,DH OpCo UK Ltd,5970001111,"29,704.64 ",Provision & support of the i.Labs system. Year 2: 01/01/2022  31/12/ 2022 payment terms: quarterly in advance As per the terms and conditions of the NHS SBS Framework reference,GU11 1PZ
CHS Estates,L2 Estates,14/04/2022,Med Surg Eqpt Mtce Contracts,Management Estates,DH OpCo UK Ltd,5970001210,"30,084.26 ",Full DR contingency for iLAB System Service.Agreement Commending - 1st December 2021 - 30th November 2022,GU11 1PZ
Medical Division,Emergency Medicine,08/04/2022,B5 Agency Nursing,A&E Nursing,Direct Healthcare 24 Plc,130322CH,482.24,Agency Nursing,HA1 1BE
Corporate Services,Central Operations Team CORP,08/04/2022,B5 Agency Nursing,Central Operations Team CORP,Direct Healthcare 24 Plc,130322CH,1446.63,Agency Nursing,HA1 1BE
Surgery & Anaesthetics,Critical Care,08/04/2022,B5 Agency Nursing,Critical Care,Direct Healthcare 24 Plc,130322CH,1395.08,Agency Nursing,HA1 1BE
Medical Division,Medical Specialities,08/04/2022,B5 Agency Nursing,Gastroenterology,Direct Healthcare 24 Plc,130322CH,3801.75,Agency Nursing,HA1 1BE
Medical Division,Acute Medical,08/04/2022,B5 Agency Nursing,General Medicine,Direct Healthcare 24 Plc,130322CH,3728.31,Agency Nursing,HA1 1BE
Surgery & Anaesthetics,General Surgery,08/04/2022,B5 Agency Nursing,General Surgery,Direct Healthcare 24 Plc,130322CH,4248.62,Agency Nursing,HA1 1BE
Medical Division,Acute Medical,08/04/2022,B5 Agency Nursing,Geriatric Medicine,Direct Healthcare 24 Plc,130322CH,2791.5,Agency Nursing,HA1 1BE
Medical Division,Integrated Medical Specialities,08/04/2022,B5 Agency Nursing,Ims Stroke / Rehabilitation,Direct Healthcare 24 Plc,130322CH,1403.37,Agency Nursing,HA1 1BE
Medical Division,Medical Specialities,08/04/2022,B5 Agency Nursing,Respiratory,Direct Healthcare 24 Plc,130322CH,2379,Agency Nursing,HA1 1BE
Surgery & Anaesthetics,Orthopaedics,08/04/2022,B5 Agency Nursing,Trauma & Orthopaedics,Direct Healthcare 24 Plc,130322CH,498.94,Agency Nursing,HA1 1BE
Corporate Services,Central Operations Team CORP,01/04/2022,B5 Agency Nursing,Central Operations Team CORP,Direct Healthcare 24 Plc,270222CH,2458.66,Agency Nursing,HA1 1BE
Medical Division,Medical Specialities,01/04/2022,B5 Agency Nursing,Gastroenterology,Direct Healthcare 24 Plc,270222CH,1389.74,Agency Nursing,HA1 1BE
Medical Division,Acute Medical,01/04/2022,B5 Agency Nursing,General Medicine,Direct Healthcare 24 Plc,270222CH,1464.19,Agency Nursing,HA1 1BE
Surgery & Anaesthetics,General Surgery,01/04/2022,B5 Agency Nursing,General Surgery,Direct Healthcare 24 Plc,270222CH,4214.4,Agency Nursing,HA1 1BE
Medical Division,Acute Medical,01/04/2022,B5 Agency Nursing,Geriatric Medicine,Direct Healthcare 24 Plc,270222CH,3587.94,Agency Nursing,HA1 1BE
Medical Division,Integrated Medical Specialities,01/04/2022,B5 Agency Nursing,Ims Stroke / Rehabilitation,Direct Healthcare 24 Plc,270222CH,6140.58,Agency Nursing,HA1 1BE
Medical Division,Integrated Medical Specialities,01/04/2022,B5 Agency Nursing,Medical Oncology,Direct Healthcare 24 Plc,270222CH,272.92,Agency Nursing,HA1 1BE
Corporate Services,Quality,01/04/2022,B5 Agency Nursing,Quality,Direct Healthcare 24 Plc,270222CH,2844.62,Agency Nursing,HA1 1BE
Medical Division,Medical Specialities,01/04/2022,B5 Agency Nursing,Respiratory,Direct Healthcare 24 Plc,270222CH,960.85,Agency Nursing,HA1 1BE
Surgery & Anaesthetics,Orthopaedics,01/04/2022,B5 Agency Nursing,Trauma & Orthopaedics,Direct Healthcare 24 Plc,270222CH,787.18,Agency Nursing,HA1 1BE
Families & Specialist Services,Radiology,01/04/2022,Contractual Clinical Services,Rad General,Dmc Imaging Ltd,HF/21-22/OCT/7A,"26,027.75 ",Radiology Outsourced Reporting,SE15 1PD
CHS Estates,L2 Estates,08/04/2022,Electricity,Estates Operations,EDF Energy Customers Ltd,000011723783,"153,302.98 ",Mains Electric for Calderdale Royal Hospital,W1T 4EZ
CHS Facilities,L2 Facilities,29/04/2022,External Contracts : Laundry,Laundry,Elis UK Limited,SN3471860,"105,906.91 ",laundry contract for hired linen,RG24 8JP
Balance Sheet,Fixed Assets,22/04/2022,Additions - Assets Under Construction,Capital (His),European Electronique Ltd,0001586422,"5,179.40",HW Breakfix support for 4x Netapp FAS8040A Dual ControllerOption A - 3 months Fix onsite engineer service @ 2 623.03Inc 8x DS2246 @ 2 556.37Contract date 1/4/22  - 30/6/2022,OX29 4TT
Balance Sheet,Fixed Assets,22/04/2022,Additions - Assets Under Construction,Capital (His),European Electronique Ltd,0001586422,800.76,Cisco 10GB Base -CU SFP Cable 2.5m ,OX29 4TT
Balance Sheet,Fixed Assets,22/04/2022,Additions - Assets Under Construction,Capital (His),European Electronique Ltd,0001586422,"5,746.32",Cisco 10GB Base -SR SFP Module,OX29 4TT
Balance Sheet,Fixed Assets,22/04/2022,Additions - Assets Under Construction,Capital (His),European Electronique Ltd,0001586422,110.24,Cable OM4 LC to LC Fibre optic cable - 10m,OX29 4TT
Balance Sheet,Fixed Assets,22/04/2022,Additions - Assets Under Construction,Capital (His),European Electronique Ltd,0001586422,16.64,Cable OM4 LC to LC Fibre optic cable - 5m,OX29 4TT
Balance Sheet,Fixed Assets,22/04/2022,Additions - Assets Under Construction,Capital (His),European Electronique Ltd,0001586422,"45,687.96",Pure Storage PS- non prod migra up to 6 test migrates 6 hosts 50TB,OX29 4TT
Balance Sheet,Fixed Assets,22/04/2022,Additions - Assets Under Construction,Capital (His),European Electronique Ltd,0001586422,"4,012.42",Coolspirit Project Management,OX29 4TT
Balance Sheet,Fixed Assets,22/04/2022,Additions - Assets Under Construction,Capital (His),European Electronique Ltd,0001586422,"121,654.53",HRI Tier 1 Pure storage Flash array @ 68 030.95Install service @ 2 217Coolspirit project management @449.16Inc Carriage 388.62EVERGREEN SILVER SUBSCRIPTION 1 month subscription 842.88 x 60 month - contract period 1/4/22 to 31/3/27,OX29 4TT
Balance Sheet,Fixed Assets,22/04/2022,Additions - Assets Under Construction,Capital (His),European Electronique Ltd,0001586422,"121,654.53",CRH Tier 1 Pure storage Flash array @ 68 030.95Install service @ 2 217Coolspirit project management @449.16Inc Carriage 388.62EVERGREEN SILVER SUBSCRIPTION 1 month subscription 842.88 x 60 month - contract period 1/4/22 to 31/3/27,OX29 4TT
Balance Sheet,Fixed Assets,22/04/2022,Additions - Assets Under Construction,Capital (His),European Electronique Ltd,0001586422,"151,846.71",HRI Tier 2 Pure storage Flash array @ 92625.73Install service @ 2 217Coolspirit project management @449.16Inc Carriage 388.62EVERGREEN SILVER SUBSCRIPTION 1 month subscription 936.17 x 60 month - contract period 1/4/22 to 31/3/27,OX29 4TT
Balance Sheet,Fixed Assets,22/04/2022,Additions - Assets Under Construction,Capital (His),European Electronique Ltd,0001586422,"151,846.71",CRH Tier 2 Pure storage Flash array @ 92625.73Install service @ 2 217Coolspirit project management @449.16Inc Carriage 388.62EVERGREEN SILVER SUBSCRIPTION 1 month subscription 936.17 x 60 month - contract period 1/4/22 to 31/3/27,OX29 4TT
Balance Sheet,Fixed Assets,14/04/2022,Additions - Assets Under Construction,Capital (Estates),FredShaw & Co Ltd,0000010648,"59,905.20 ",Replacement of pharmacy AHU  controls  heating and cooling as per quote,HD1 3PR
CHS Estates,L2 Estates,08/04/2022,Gas,Estates Operations,Gazprom Marketing And Trading Retail Ltd,INV02283752,"47,725.26 ",Mains gas for HRI,NW1 3BF
Families & Specialist Services,Radiology,01/04/2022,Imaging Equipment Maintenance,Rad General,Ge Medical Systems Ltd,124D678,"31,087.20 ",Replacement x-ray tube for Room 1 at CRH.,HP8 4SP
Corporate Services,Quality,14/04/2022,Advertising and Staff Recruitment,Quality,Health Education England,49305718,"2,879.40",Health Education England fees for6 overseasnurses Commission part B & flights,WF3 1WE
Corporate Services,Quality,14/04/2022,Training Expenses,Quality,Health Education England,49305718,"10,361.89",Health Education England fees for 4 overseas nurseVISA and Part A commission fees.,WF3 1WE
Corporate Services,Quality,14/04/2022,Advertising and Staff Recruitment,Quality,Health Education England,49305718,"33,128.17",Health Education Fees for 10 overseas nursesVISA  Part A fees & part B feesFlights,WF3 1WE
Balance Sheet,Fixed Assets,01/04/2022,Additions - Assets Under Construction,CAPITAL (Reconfig CRH),IBI Group (UK) Ltd,10007680,"140,976.00 ",RECONFIGURATION OF HOSPITAL SERVICES - CRH DESIGN TEAM,M20 2EY
Balance Sheet,Fixed Assets,22/04/2022,Additions - Assets Under Construction,CAPITAL (Reconfig HRI),Integrated Health Projects,22040035,"528,087.71 ",STAGE 3 & 4 GMP SUBMISSION FOR THE DELIVERY OF A NEW ACCIDENT AND EMERGENCY BUILD AT THE HUDDERSFIELD ROYAL INFIRMARY ,WD24 4WW
Balance Sheet,L2 Current Assets,01/04/2022,Finished Processed Goods,Stock & Work In Progress,Janssen-Cilag Ltd,930818121,"35,769.60 ",Pharmaceutical  purchase,HP12 4EG
Estates & Facilities,Estates,14/04/2022,Rates,Estates Operations,Kirklees Council,969286425_2022,"43,093.00 ",business rates for Huddersfield Royal Infirmary,HD1 2NF
Corporate Services,Finance,01/04/2022,Audit Fees : Statutory,Finance,KPMG LLP,5502398739,"97,080.00 ",TRUST FINANCIAL STATEMENTS AUDIT,WD17 1DE
Corporate Services,Finance,22/04/2022,Audit Fees : Statutory,Finance,KPMG LLP,5502407274,"97,080.00 ",TRUST FINANCIAL STATEMENTS AUDIT,WD17 1DE
Families & Specialist Services,Pharmacy,08/04/2022,Drugs,Pharm Gen,L Rowland & Company (Retail) Ltd,1800000175,"703,379.07 ",Medicines spend,WA7 3DJ
Families & Specialist Services,Pharmacy,08/04/2022,Drugs,Pharm Gen,L Rowland & Company (Retail) Ltd,1800000175,"92,109.00 ",Dispensing fee,WA7 3DJ
Families & Specialist Services,Radiology,08/04/2022,Med Surg Eqpt Hire,Ct,Medispace B.V.,20220209,"30,025.92 ",Rental of a CM050 CT scanbox with Canon Prime 160 slice CT scanner plus 2 radiographers to run the service 8am-20.00pm 7 days per week ,2712 PJ  The Netherlands
Medical Division,Medical Specialities,29/04/2022,Pacemakers,Cardiology,Medtronic Ltd,1204943269,"33,600.00 ",Azure S DR System W3DR01 with 20 x 4574 58cm and 20 x 5076 58cm leads.,WD18 8WW
Medical Division,Medical Specialities,29/04/2022,Pacemakers,Cardiology,Medtronic Ltd,1204946023,"5,796.00",2 X Solara W1TR06 SYSTEMS ,WD18 8WW
Medical Division,Medical Specialities,29/04/2022,Pacemakers,Cardiology,Medtronic Ltd,1204946023,"3,360.00",1 X W1TR04 Percepta CRTP system TO ORDER  2 x 4798 88cm and 1 x 4074 58cm,WD18 8WW
Medical Division,Medical Specialities,29/04/2022,Pacemakers,Cardiology,Medtronic Ltd,1204946023,"23,520.00",7 x percepta CRTP W4TR04 with 3 x 4798 88cm  2 x 4074 58cm (Already recieved 2x 4398 88cm  2 x 5076 45cm  2 x 5076 65cm  8 x 5076 52cm) (and 2 x 4398 88cm ordered but not arrived yet),WD18 8WW
Medical Division,Medical Specialities,29/04/2022,Pacemakers,Cardiology,Medtronic Ltd,1204946023,"20,286.00",7 x Solara W4TR06 systems with 4 x 4298 88cm  2 x 4398 88cm  1 x 4798 88cm  1 x 4798 88cm  2 x 4074 58cm (and 12 x 5076 52cm already recieved) ,WD18 8WW
Medical Division,Medical Specialities,29/04/2022,Pacemakers,Cardiology,Medtronic Ltd,1204946023,"2,898.00",pacemaker: 1 x Solara W4TR06not received 2 x 4398 88cm 1 x 4074 58 cm.,WD18 8WW
Families & Specialist Services,Radiology,14/04/2022,Imaging Equipment Purchases,Rad General,Mid Yorkshire Hospitals NHS Trust,1600019598,"29,100.00 ",WYAAT trusts share of the depreciation and PDC Qtr 4,WF1 4DG
Recharges,Recharges,14/04/2022,Healthcare From NHS Trusts,Recharges,Mid Yorkshire Hospitals NHS Trust,1600019610,"54,448.24 ",Various services provided by agreement as per West Yorkshire Association of Acute Trusts agreed methodology,WF1 4DG
Balance Sheet,Fixed Assets,01/04/2022,Additions - Assets Under Construction,Capital (Surgical),Mindray (Uk) Ltd,30004992,"34,983.48 ",Portable Diagnostic Ultrasound System for AAA Screening,PE29 6FN
Families & Specialist Services,Pathology,15/04/2022,Blood Products,Blood Sciences,NHS Blood And Transplant,7004029,"85,109.73 ",MONTHLY CONTRACT CHARGE BLOOD & COMPONENTS,LS15 7TW
Families & Specialist Services,Pathology,15/04/2022,Blood Products,Blood Sciences,NHS Blood And Transplant,7004030,"32,812.05 ",MONTHLY CONTRACT CHARGE BLOOD & COMPONENTS,LS15 7TW
Corporate Services,Quality,01/04/2022,Clinical Negligence,Quality,NHS Resolution,SICX407979,"692,288.06",Clinical Negligence provision,SW1W 9SZ
Corporate Services,Quality,01/04/2022,Insurance Costs,Quality,NHS Resolution,SICX407979,"21,592.75 ",Clinical Negligence provision,SW1W 9SZ
Families & Specialist Services,Womens,01/04/2022,Clinical Negligence,Womens Management,NHS Resolution,SICX407979,"871,556.47 ",Clinical Negligence provision,SW1W 9SZ
Corporate Services,Quality,15/04/2022,Clinical Negligence,Quality,NHS Resolution,SICX408208,"791,186.30 ",Clinical Negligence provision,SW1W 9SZ
Corporate Services,Quality,15/04/2022,Insurance Costs,Quality,NHS Resolution,SICX408208,"20,850.40 ",Clinical Negligence provision,SW1W 9SZ
Families & Specialist Services,Womens,15/04/2022,Clinical Negligence,Womens Management,NHS Resolution,SICX408208,"857,768.00 ",Clinical Negligence provision,SW1W 9SZ
CHS Balance Sheet,Current Liabilities,01/04/2022,Non- NHS  Trade Creditors < One Year,Other Creditors,NHS Supply Chain,1122244298,"262,128.72 ",Goods delivered week ending 25/03/2022,DE55 4QJ
CHS Balance Sheet,Current Liabilities,08/04/2022,Non- NHS  Trade Creditors < One Year,Other Creditors,NHS Supply Chain,1122249570,"140,387.69 ",Goods delivered week ending 31/03/2022,DE55 4QJ
CHS Balance Sheet,Current Liabilities,08/04/2022,Non- NHS  Trade Creditors < One Year,Other Creditors,NHS Supply Chain,1123000855,"45,507.02 ",Goods delivered week ending 01/04/2022,DE55 4QJ
CHS Balance Sheet,Current Liabilities,29/04/2022,Non- NHS  Trade Creditors < One Year,Other Creditors,NHS Supply Chain,1123009492,"206,938.37 ",Goods delivered week ending 15/04/2022,DE55 4QJ
CHS Estates,L2 Estates,08/04/2022,Med Surg Eqpt Mtce Contracts,Management Estates,NHS Supply Chain - Maintenance,2122008338,"68,801.23 ",Gold Service Package for Ultrasound Bronchoscopes and associated Electro-Medical Equipment.  Agreement Commencing - 14th March 2022 - 13th March 2023,DE55 4QJ
Corporate Services,Finance,22/04/2022,Fm Computer Contracts,Finance,Northumbria Healthcare NHS Foundation Trust,7510411586,"219,734.00 ",Financial software system charges,NE27 0QJ
Balance Sheet,L2 Current Assets,14/04/2022,Finished Processed Goods,Stock & Work In Progress,Novartis Pharmaceuticals Uk Ltd,92582580,"53,424.00 ",Pharmaceutical  purchase,GU16 7SR
Balance Sheet,L2 Current Assets,29/04/2022,Finished Processed Goods,Stock & Work In Progress,Novartis Pharmaceuticals Uk Ltd,92588741,"80,194.64 ",Pharmaceutical  purchase,GU16 7SR
Balance Sheet,L2 Current Assets,01/04/2022,Finished Processed Goods,Stock & Work In Progress,Octapharma Ltd,5208041630,"37,650.00 ",Pharmaceutical  purchase,M2 1AB
Surgery & Anaesthetics,Surgical Divisional Support,01/04/2022,Med Surg Eqpt Disposable,Support Services,Olympus Keymed,A1700919,"267,545.81 ",CF-HQ290L LUCERA COLONSCOPE - Flex Colonscope GIF-HQ290 LUCERA GASTROSCOPE - Flex Gastroscope,SS2 5QH
Balance Sheet,Fixed Assets,04/04/2022,Additions - Assets Under Construction,Capital (Surgical),Olympus Keymed,A1703824,"96,441.41 ",PCF-H290DL Lucera Paediatric Colonoscope,SS2 5QH
Balance Sheet,Fixed Assets,04/04/2022,Additions - Assets Under Construction,Capital (Surgical),Olympus Keymed,A1705897,"29,074.94 ",Rigid Endoscope Camera System,SS2 5QH
Balance Sheet,Fixed Assets,22/04/2022,Additions - Assets Under Construction,Capital (Surgical),Olympus Keymed,CD2756489,"59,034.02 ",Flex Cystoscope ,SS2 5QH
Balance Sheet,Fixed Assets,29/04/2022,Additions - Assets Under Construction,Capital (Surgical),Olympus Keymed,CD2758411,"168,481.21 ",Colonoscope/ Gastroscope/Cystoscope 290 Stack System,SS2 5QH
Surgery & Anaesthetics,Surgical Divisional Support,22/04/2022,Healthcare From Commercial Sector,Independent Sector,Omnes Healthcare Ltd,CALOCT21,"46,098.00 ",Insouring Outpatient Capacity - ENT,SE22 8EY
CHS Estates,L2 Estates,29/04/2022,Electricity,Estates Operations,Opus Energy Ltd,41709018,"98,808.97 ",Mains electricity for HRI,"YO8 8PH	"
Corporate Services,Service Performance,14/04/2022,Contract : Other External,Properties,Pennine Property Partnership Llp,SI0000015,"135,655.20 ",Acre Mill Outpatients January - March 2022 Service charge,S11 9PD
Pmu,Pmu,29/04/2022,Contract : Other External,Pmu,Pilz Ltd,HPS.2022.03,"40,662.53 ","50% share of gross margin Povidone/iodine product ( March receipts )	",S75 3SP
Surgery & Anaesthetics,Surgical Divisional Support,01/04/2022,Healthcare From Commercial Sector,Independent Sector,Pioneer Healthcare Ltd,2936,"27,681.00 ",Insourcing of Clinical Support Services,S10 5UB
Balance Sheet,Fixed Assets,29/04/2022,Additions - Assets Under Construction,Capital (Surgical),Probo Medical Ltd,SIUKM-000553,"120,124.20 ",Full MRI Monitoring Solutions ,GL2 2FN
Balance Sheet,Fixed Assets,22/04/2022,Net Book Value Brought Forward - Assets Under Construction,Capital (His),Pure Audio Visual,4030483,"421,000.00 ",Crestron Microsoft Teams unit replacement of existing Cisco units various locations in CHFT in accordance to quote ,PR5 8AS
Corporate Services,Quality,22/04/2022,Office Equipment And Materials : Purchase,Quality,Pure Audio Visual,4030564,"69,558.10 ",HRI Learning and Development Centre Video (VC) Kit. ,PR5 8AS
Balance Sheet,L2 Current Assets,01/04/2022,Finished Processed Goods,Stock & Work In Progress,Qualasept Ltd,SQS0127849,"37,800.00 ",Pharmaceutical  purchase,SN13 9RG
Balance Sheet,Fixed Assets,08/04/2022,Additions - Assets Under Construction,Capital (His),Rdp Group Uk Ltd,026858,"29,700.00 ",LUNA Series  256Wh SENSA-LiFe� Single batterypower + Imprivata Bracket VESA Assembly as per quote ,RH15 9TN
Balance Sheet,Fixed Assets,08/04/2022,Additions - Assets Under Construction,Capital (Fss),Rdp Group Uk Ltd,026859,"48,459.60 ",LUNA Series  twin battery option  LNA-T01-111U - Imprivata Bracket VESA Assembly /PH-SH-027 ,RH15 9TN
Central & Technical,Tech Accounting,22/04/2022,B5 Agency Nursing,Tech Accounting,Red Group Personnel Ltd,909CALD,"32,682.01 ",Agency Nursing Financial year 2021-22,HA3 5AB
Central & Technical,Tech Accounting,22/04/2022,B5 Agency Nursing,Tech Accounting,Red Group Personnel Ltd,910CALD,"27,995.53 ",Agency Nursing Financial year 2021-22,HA3 5AB
Central & Technical,Tech Accounting,22/04/2022,B5 Agency Nursing,Tech Accounting,Red Group Personnel Ltd,911CALD,"38,041.75 ",Agency Nursing Financial year 2021-22,HA3 5AB
Central & Technical,Tech Accounting,22/04/2022,B5 Agency Nursing,Tech Accounting,Red Group Personnel Ltd,912CALD,"38,931.29 ",Agency Nursing Financial year 2021-22,HA3 5AB
Central & Technical,Tech Accounting,22/04/2022,B5 Agency Nursing,Tech Accounting,Red Group Personnel Ltd,913CALD,"51,071.10 ",Agency Nursing Financial year 2021-22,HA3 5AB
Central & Technical,Tech Accounting,22/04/2022,B5 Agency Nursing,Tech Accounting,Red Group Personnel Ltd,914CALD,"30,941.90 ",Agency Nursing,HA3 5AB
Medical Division,Emergency Medicine,22/04/2022,B5 Agency Nursing,A&E Nursing,Red Group Personnel Ltd,914CALD,2552.32,Agency Nursing,HA3 5AB
Medical Division,Acute Medical,22/04/2022,B5 Agency Nursing,General Medicine,Red Group Personnel Ltd,914CALD,4999.12,Agency Nursing,HA3 5AB
Medical Division,Acute Medical,22/04/2022,B5 Agency Nursing,Geriatric Medicine,Red Group Personnel Ltd,914CALD,689.98,Agency Nursing,HA3 5AB
Families & Specialist Services,Womens,22/04/2022,B5 Agency Nursing,Gynaecology,Red Group Personnel Ltd,914CALD,787.64,Agency Nursing,HA3 5AB
Medical Division,Integrated Medical Specialities,22/04/2022,B5 Agency Nursing,Ims Stroke / Rehabilitation,Red Group Personnel Ltd,914CALD,1245.29,Agency Nursing,HA3 5AB
Medical Division,Medical Specialities,22/04/2022,B5 Agency Nursing,Respiratory,Red Group Personnel Ltd,914CALD,2030.66,Agency Nursing,HA3 5AB
Surgery & Anaesthetics,Orthopaedics,22/04/2022,B5 Agency Nursing,Trauma & Orthopaedics,Red Group Personnel Ltd,914CALD,633.88,Agency Nursing,HA3 5AB
Surgery & Anaesthetics,General Surgery,22/04/2022,Healthcare From Commercial Sector,Endoscopy,Remedy Healthcare Solutions Ltd,CHT036,"26,130.00 ",Provision of Endoscopy Services ,TN22 1QG
Surgery & Anaesthetics,General Surgery,22/04/2022,Healthcare From Commercial Sector,Endoscopy,Remedy Healthcare Solutions Ltd,CHT037,"26,130.00 ",Provision of Endoscopy Services ,TN22 1QG
Balance Sheet,L2 Current Assets,29/04/2022,Finished Processed Goods,Stock & Work In Progress,Roche Products Ltd,1322230858,"47,388.00 ",Pharmaceutical  purchase,AL7 1TW
Balance Sheet,L2 Current Assets,29/04/2022,Finished Processed Goods,Stock & Work In Progress,Roche Products Ltd,1322231219,"32,052.10 ",Pharmaceutical  purchase,AL7 1TW
Balance Sheet,L2 Current Assets,29/04/2022,Finished Processed Goods,Stock & Work In Progress,Roche Products Ltd,1322231930,"61,242.49 ",Pharmaceutical  purchase,AL7 1TW
Balance Sheet,L2 Current Assets,29/04/2022,Finished Processed Goods,Stock & Work In Progress,Roche Products Ltd,1322234022,"26,298.96 ",Pharmaceutical  purchase,AL7 1TW
Balance Sheet,L2 Current Assets,29/04/2022,Finished Processed Goods,Stock & Work In Progress,Roche Products Ltd,1322234212,"33,351.46 ",Pharmaceutical  purchase,AL7 1TW
Health Informatics,Modernisation Programme,29/04/2022,Fm Computer Contracts,Modernisation Programme,Shaping Cloud Limited,INV-1598,"39,916.80 ",Infrastructure Professional Services (SOW) Statement of Work service by Shaping Cloud ,BL1 4QR
Balance Sheet,Fixed Assets,14/04/2022,Additions - Assets Under Construction,Capital (Ops & Facs),Socamel Uk Ltd,2FU0030,"30,289.40",MULTISERV SENIOR OVEN/FRIDGE TROLLEY (CODE No 4800005) AS PER ATTACHED QUOTE,SN11 9PT
Balance Sheet,Fixed Assets,14/04/2022,Additions - Assets Under Construction,Capital (Ops & Facs),Socamel Uk Ltd,2FU0030,"2,050.00",TOP SHELF (CODE No 4800011) FOR MULTISERVE TROLLEY AS PER ATTACHED QUOTE,SN11 9PT
Balance Sheet,Fixed Assets,14/04/2022,Additions - Assets Under Construction,Capital (Ops & Facs),Socamel Uk Ltd,2FU0030,565.50,HOT/HOT COUNTERTOP (CODE No 4800034) FOR MULTISERVE TROLLEY AS PER ATTACHED QUOTE,SN11 9PT
Balance Sheet,Fixed Assets,14/04/2022,Additions - Assets Under Construction,Capital (Ops & Facs),Socamel Uk Ltd,2FU0030,288.40,DETACHABLE FOOD PROBE ,SN11 9PT
Balance Sheet,Fixed Assets,14/04/2022,Additions - Assets Under Construction,Capital (Ops & Facs),Socamel Uk Ltd,2FU0030,"1,635.00",ARTWORK FOR MULTISERV TROLLIES,SN11 9PT
Health Informatics,Corporate And Operations,29/04/2022,Computer Software / License  Fees,Professional Services,Softcat Plc,INV02554899,"960,000.00 ",Darktrace Cyber Al Platform for 5 years Commencing March 31st 2020  as per quote ,SL7 1TB
Balance Sheet,Fixed Assets,22/04/2022,Additions - Assets Under Construction,Capital (His),Softcat Plc,INV03352306,"779,625.60 ",FRM00077497 V2 - Lenovo BOM Cost,SL7 1TB
Balance Sheet,Fixed Assets,29/04/2022,Additions - Assets Under Construction,Capital (His),Softcat Plc,INV03387234,"66,528.00 ",FRM00077497 V2 - Lenovo BOM Cost,SL7 1TB
Health Informatics,Corporate And Operations,29/04/2022,Computer Software / License  Fees,Professional Services,Softcat Plc,INV03390541,"76,794.00 ",PAM & PSM - 36 Month Gov/Edu Subscription - 501-750 Licences Consultancy & Training,SL7 1TB
Surgery & Anaesthetics,Surgical Divisional Support,14/04/2022,Contractual Clinical Services,Independent Sector,Spire Healthcare Ltd,RWYELDICF2122M10,"80,560.28 ",Provision of Elective Activity on behalf of CHFT,RG1 9PL
CHS Estates,L2 Estates,29/04/2022,Clinical Waste,Estates Operations,Srcl Ltd,0001697095,"11,175.50",Clinical Waste collection service from Huddersfield Royal Infirmary,LS10  2LF
CHS Estates,L2 Estates,29/04/2022,Clinical Waste,Estates Operations,Srcl Ltd,0001697095,"10,473.84",Clinical Waste collection service from Calderdale Royal Hospital,LS10  2LF
Community Division,Community Therapies,08/04/2022,Patients Appliances : Purchase,Patient Appliances,Taycare Medical Ltd,21187,"39,153.00 ",supply of specialist orthotic products,LS12 6LL
Community Division,Community Therapies,08/04/2022,Patients Appliances : Purchase,Patient Appliances,Taycare Medical Ltd,21188,"33,018.07 ",supply of specialist orthotic products,LS12 6LL
Families & Specialist Services,Radiology,29/04/2022,Contractual Clinical Services,Rad General,Telemedicine Clinic Ltd,20220110,"102,609.52 ",Outsourced reporting ,B3 2RT
Recharges,Recharges,01/04/2022,Healthcare From NHS Trusts,Recharges,The Leeds Teaching Hospitals NHS Trust,1410186907,"249,667.91 ",Various services provided by agreement as per West Yorkshire Association of Acute Trusts agreed methodology,LS9 7TF
CHS Facilities,L2 Facilities,08/04/2022,Contract : Premises Security,Security,The Leeds Teaching Hospitals NHS Trust,1410185740,"34,948.94 ",security contract,LS9 7TF
CHS Facilities,L2 Facilities,08/04/2022,Contract : Premises Security,Security,The Leeds Teaching Hospitals NHS Trust,1410187080,"34,948.94 ",security contract,LS9 7TF
Community Division,Community Management,29/04/2022,Contract : Other External,Admin And Management,The Phoenix Partnership (Leeds) Ltd,13366,"251,314.44 ",SystmOne Annual Licence Fee (01/04/2022-31/03/2023) - Community (946 users) -CHS (59 285 patients) Palliative (1 unit) - 10 433.83,LS18 5TN
Health Informatics,Corporate And Operations,01/04/2022,Computer Software / License  Fees,It Support,Trustmarque Solutions Ltd,2336474,"43,560.00 ",SharePoint Project Phase One - Discovery and Design for Calderdale CCG,YO41 1LZ
Balance Sheet,L2 Current Assets,29/04/2022,Other Debtors < One Year,Other Debtors,Tuskerdirect Ltd,58709,"115,939.28 ",Salary Sacrifice cars,WD18 8YF
Medical Division,Emergency Medicine,01/04/2022,B5 Agency Nursing,A&E Nursing,Your Nurse Ltd,YNLX15,7270.72,Agency Nursing,EC3V 0EH
Corporate Services,Central Operations Team CORP,01/04/2022,B5 Agency Nursing,Central Operations Team CORP,Your Nurse Ltd,YNLX15,1239.17,Agency Nursing,EC3V 0EH
Medical Division,Medical Specialities,01/04/2022,B5 Agency Nursing,Gastroenterology,Your Nurse Ltd,YNLX15,1731.45,Agency Nursing,EC3V 0EH
Medical Division,Acute Medical,01/04/2022,B5 Agency Nursing,General Medicine,Your Nurse Ltd,YNLX15,1154.3,Agency Nursing,EC3V 0EH
Surgery & Anaesthetics,General Surgery,01/04/2022,B5 Agency Nursing,General Surgery,Your Nurse Ltd,YNLX15,9726.36,Agency Nursing,EC3V 0EH
Medical Division,Acute Medical,01/04/2022,B5 Agency Nursing,Geriatric Medicine,Your Nurse Ltd,YNLX15,1215.05,Agency Nursing,EC3V 0EH
Medical Division,Integrated Medical Specialities,01/04/2022,B5 Agency Nursing,Ims Stroke / Rehabilitation,Your Nurse Ltd,YNLX15,1790.47,Agency Nursing,EC3V 0EH
Medical Division,Integrated Medical Specialities,01/04/2022,B5 Agency Nursing,Medical Oncology,Your Nurse Ltd,YNLX15,1213.32,Agency Nursing,EC3V 0EH
Surgery & Anaesthetics,Operating Services,01/04/2022,B5 Agency Nursing,Operating Services,Your Nurse Ltd,YNLX15,2624.02,Agency Nursing,EC3V 0EH
Surgery & Anaesthetics,Orthopaedics,01/04/2022,B5 Agency Nursing,Trauma & Orthopaedics,Your Nurse Ltd,YNLX15,2352.16,Agency Nursing,EC3V 0EH
Medical Division,Emergency Medicine,01/04/2022,B5 Agency Nursing,A&E Nursing,Your Nurse Ltd,YNLX16,6798.55,Agency Nursing,EC3V 0EH
Corporate Services,Central Operations Team CORP,01/04/2022,B5 Agency Nursing,Central Operations Team CORP,Your Nurse Ltd,YNLX16,3042.99,Agency Nursing,EC3V 0EH
Medical Division,Medical Specialities,01/04/2022,B5 Agency Nursing,Gastroenterology,Your Nurse Ltd,YNLX16,1154.3,Agency Nursing,EC3V 0EH
Medical Division,Acute Medical,01/04/2022,B5 Agency Nursing,General Medicine,Your Nurse Ltd,YNLX16,577.15,Agency Nursing,EC3V 0EH
Surgery & Anaesthetics,General Surgery,01/04/2022,B5 Agency Nursing,General Surgery,Your Nurse Ltd,YNLX16,8585.39,Agency Nursing,EC3V 0EH
Medical Division,Acute Medical,01/04/2022,B5 Agency Nursing,Geriatric Medicine,Your Nurse Ltd,YNLX16,4718.66,Agency Nursing,EC3V 0EH
Surgery & Anaesthetics,Operating Services,01/04/2022,B5 Agency Nursing,Operating Services,Your Nurse Ltd,YNLX16,4824.81,Agency Nursing,EC3V 0EH
Medical Division,Medical Specialities,01/04/2022,B5 Agency Nursing,Respiratory,Your Nurse Ltd,YNLX16,577.15,Agency Nursing,EC3V 0EH
Surgery & Anaesthetics,Orthopaedics,01/04/2022,B5 Agency Nursing,Trauma & Orthopaedics,Your Nurse Ltd,YNLX16,3677,Agency Nursing,EC3V 0EH
Medical Division,Emergency Medicine,01/04/2022,B5 Agency Nursing,A&E Nursing,Your Nurse Ltd,YNLX17,9891.3,Agency Nursing,EC3V 0EH
Medical Division,Medical Specialities,01/04/2022,B5 Agency Nursing,Cardiology,Your Nurse Ltd,YNLX17,577.15,Agency Nursing,EC3V 0EH
Corporate Services,Central Operations Team CORP,01/04/2022,B5 Agency Nursing,Central Operations Team CORP,Your Nurse Ltd,YNLX17,3096.82,Agency Nursing,EC3V 0EH
Medical Division,Acute Medical,01/04/2022,B5 Agency Nursing,General Medicine,Your Nurse Ltd,YNLX17,1692.6,Agency Nursing,EC3V 0EH
Surgery & Anaesthetics,General Surgery,01/04/2022,B5 Agency Nursing,General Surgery,Your Nurse Ltd,YNLX17,10471.45,Agency Nursing,EC3V 0EH
Medical Division,Acute Medical,01/04/2022,B5 Agency Nursing,Geriatric Medicine,Your Nurse Ltd,YNLX17,3503.18,Agency Nursing,EC3V 0EH
Medical Division,Integrated Medical Specialities,01/04/2022,B5 Agency Nursing,Ims Stroke / Rehabilitation,Your Nurse Ltd,YNLX17,628.4,Agency Nursing,EC3V 0EH
Medical Division,Integrated Medical Specialities,01/04/2022,B5 Agency Nursing,Medical Oncology,Your Nurse Ltd,YNLX17,628.4,Agency Nursing,EC3V 0EH
Surgery & Anaesthetics,Operating Services,01/04/2022,B5 Agency Nursing,Operating Services,Your Nurse Ltd,YNLX17,4288.72,Agency Nursing,EC3V 0EH
Medical Division,Medical Specialities,01/04/2022,B5 Agency Nursing,Respiratory,Your Nurse Ltd,YNLX17,608.05,Agency Nursing,EC3V 0EH
Surgery & Anaesthetics,Orthopaedics,01/04/2022,B5 Agency Nursing,Trauma & Orthopaedics,Your Nurse Ltd,YNLX17,3698.08,Agency Nursing,EC3V 0EH
Central & Technical,Tech Accounting,22/04/2022,B5 Agency Nursing,Tech Accounting,Your Nurse Ltd,YNLX18,"39,640.99 ",Agency Nursing,EC3V 0EH
Central & Technical,Tech Accounting,14/04/2022,B5 Agency Nursing,Tech Accounting,Your Nurse Ltd,YNLX19,"51,116.03 ",Agency Nursing,EC3V 0EH
Medical Division,Emergency Medicine,14/04/2022,B5 Agency Nursing,A&E Nursing,Your Nurse Ltd,YNLX19,1334.87,Agency Nursing,EC3V 0EH
Corporate Services,Central Operations Team CORP,14/04/2022,B5 Agency Nursing,Central Operations Team CORP,Your Nurse Ltd,YNLX19,1902.04,Agency Nursing,EC3V 0EH
Surgery & Anaesthetics,Head & Neck,14/04/2022,B5 Agency Nursing,Ent,Your Nurse Ltd,YNLX19,1293,Agency Nursing,EC3V 0EH
Medical Division,Medical Specialities,14/04/2022,B5 Agency Nursing,Gastroenterology,Your Nurse Ltd,YNLX19,584.92,Agency Nursing,EC3V 0EH
Medical Division,Acute Medical,14/04/2022,B5 Agency Nursing,General Medicine,Your Nurse Ltd,YNLX19,608.05,Agency Nursing,EC3V 0EH
Surgery & Anaesthetics,General Surgery,14/04/2022,B5 Agency Nursing,General Surgery,Your Nurse Ltd,YNLX19,5068.22,Agency Nursing,EC3V 0EH
Medical Division,Acute Medical,14/04/2022,B5 Agency Nursing,Geriatric Medicine,Your Nurse Ltd,YNLX19,608.05,Agency Nursing,EC3V 0EH
Medical Division,Integrated Medical Specialities,14/04/2022,B5 Agency Nursing,Ims Stroke / Rehabilitation,Your Nurse Ltd,YNLX19,1192.97,Agency Nursing,EC3V 0EH
Medical Division,Medical Specialities,14/04/2022,B5 Agency Nursing,Respiratory,Your Nurse Ltd,YNLX19,584.92,Agency Nursing,EC3V 0EH
Surgery & Anaesthetics,Orthopaedics,14/04/2022,B5 Agency Nursing,Trauma & Orthopaedics,Your Nurse Ltd,YNLX19,609.04,Agency Nursing,EC3V 0EH
